Cogmind - Beta 16.1 @@@ ROGUE MODE // 2026.03.17 @ 20:25:55 Player: MatMK Result: Destroyed by Y-45 Defender with Heavy Assault Rifle Performance ------------- Evolutions (1) 500 Regions Visited (3) 600 Robots Destroyed (30) 150 Value Destroyed (747) 747 Prototype IDs (6) 120 Alien Tech Used (0) 0 Bonus (0) 0 TOTAL SCORE: 2117 Bonus ------- None Cogmind --------- Core Integrity 0/400 Matter 93/300 Energy 265/275 System Corruption 9% Temperature Cool (14) Movement Walking (121) Location -9/Storage Parts ------- > --- POWER (1) -------- Deuterium Engine > --- PROPULSION (3) --- Aluminum Leg Titanium Leg Titanium Leg > --- UTILITY (3) ------ Medium Storage Unit Improved Terrain Scanner > --- WEAPON (2) ------- Heavy Particle Gun Precision Beam Rifle > --- INVENTORY (10) --- Deuterium Engine Aluminum Leg Improved Signal Interpreter Improved Terrain Scanner Hacking Suite Heavy Particle Gun Precision Beam Rifle Grenade Launcher Scythe Peak State ------------ > --- POWER ------------ Deuterium Engine > --- PROPULSION ------- Aluminum Leg Titanium Leg Titanium Leg > --- UTILITY ---------- Heat Sink Medium Storage Unit Improved Terrain Scanner > --- WEAPON ----------- Heavy Particle Gun Precision Beam Rifle > --- INVENTORY -------- Deuterium Engine Aluminum Leg Small Storage Unit Improved Signal Interpreter Improved Terrain Scanner Heavy Particle Gun Heavy Particle Gun Heavy Particle Gun Precision Beam Rifle Scythe [Rating: 26] Favorites ----------- Power Light Ion Engine Engine Light Ion Engine Power Core Light Nuclear Core Propulsion Aluminum Leg Leg Aluminum Leg Utility Seismic Detector Device Seismic Detector Storage Medium Storage Unit Protection Light Armor Plating Weapon Assault Rifle Energy Gun Precision Beam Rifle Ballistic Gun Assault Rifle Launcher Grenade Launcher Special Weapon Mining Laser Slashing Weapon Scythe Special Melee Weapon Datajack Build | -11 -10 -9 -9 ------- Run | Yrd Mat Mat Sto Slots Evolved 2 | . . 2 . Power . | . . . . Propulsion 1 | . . 1 . Utility 1 | . . 1 . Weapon . | . . . . Parts Attached 34 | 8 7 15 4 Power 5 | 1 . 4 . Engine 4 | 1 . 3 . Core 1 | . . 1 . Reactor . | . . . . Propulsion 12 | 2 5 5 . Treads . | . . . . Leg 12 | 2 5 5 . Wheel . | . . . . Hover . | . . . . Flight . | . . . . Utility 7 | 3 1 1 2 Device 4 | 2 . 1 1 Storage 2 | 1 1 . . Processor . | . . . . Hackware . | . . . . Protection 1 | . . . 1 Artifact . | . . . . Weapon 10 | 2 1 5 2 Energy Gun 4 | . . 3 1 Energy Cannon . | . . . . Ballistic Gun 2 | 2 . . . Ballistic Cannon . | . . . . Launcher 1 | . . . 1 Special Weapon 1 | . 1 . . Impact Weapon . | . . . . Slashing Weapon 1 | . . 1 . Piercing Weapon . | . . . . Special Melee Weapon 1 | . . 1 . Unidentified Prototypes 2 | . . 2 . Parts Lost 7 | . . 5 2 Power 1 | . . 1 . Propulsion 2 | . . 2 . Utility 3 | . . 1 2 Weapon 1 | . . 1 . Highest Loss Streak 3 | . . 3 1 To Critical Strikes . | . . . . Average Backups 7 | 2 6 8 9 Power . | . 1 1 1 Propulsion 1 | . 1 1 1 Utility 2 | . 1 3 3 Weapon 3 | 1 2 2 4 Tool/Special . | . . . . Unused Backups 17 | . 4 6 7 Power 2 | . . 1 1 Propulsion 1 | . 1 . . Utility 6 | . 1 2 3 Weapon 7 | . 2 2 3 Tool/Special 1 | . . 1 . Average Slot Usage (%) 98 | . 98 98 98 Engine 11 | . 14 9 11 Leg 30 | . 28 32 33 Device 17 | . 13 21 20 Storage 12 | . 13 11 11 Energy Gun 4 | . . 5 13 Ballistic Gun 14 | . 27 4 . Special Weapon 1 | . . 4 . Slashing Weapon 3 | . . 5 6 Peak Build Rating 26 | 9 8 26 26 Average Rating 14 | 6 7 18 23 On Entrance 10 | . 7 8 26 Avg Prop Armor Cover (%) . | . . . . Naked Turns . | . . . . Heaviest Build 28 | 13 18 26 28 Greatest Support 51 | 20 20 51 44 Greatest Overweight (x) 2 | 2 . . . Average Overweight (x) . | . . . . Largest Inventory Capacity 10 | 8 10 10 10 Average Capacity 9 | 7 8 10 10 Most Carried 10 | 6 10 10 10 Average Carried 7 | 2 6 8 9 Final Capacity 10 | 8 10 10 10 Final Carried 10 | 5 9 10 9 Class Distribution -------------------- 88% | Mutant 11% | Scavenger-Mutant Dominant Class ---------------- Mutant | -10/Materials Mutant | -9/Materials Mutant | -9/Storage Resources | -11 -10 -9 -9 ----------- Run | Yrd Mat Mat Sto Matter Collected 910 | 317 242 140 211 Remotely . | . . . . Salvage Created 958 | 128 304 181 345 Parts 69 | 10 18 12 29 Haulers Intercepted 2 | . . 1 1 Recyclers Shooed 1 | . . . 1 Parts Field Recycled . | . . . . Retrieved Matter . | . . . . Parts Self-Destructed . | . . . . Prevented . | . . . . Parts Restored . | . . . . Kills | -11 -10 -9 -9 ------- Run | Yrd Mat Mat Sto Combat Hostiles Destroyed 19 | . 6 3 10 Melee 3 | . . 3 . Guns 10 | . 6 . 4 AOE 6 | . . . 6 Classes Destroyed 8 | 2 2 2 2 Builder 3 | . . . 3 Tunneler 3 | 2 1 . . Hauler 2 | . . 1 1 Recycler 2 | 1 . . 1 Watcher 1 | . 1 . . Swarmer 3 | . . . 3 Grunt 13 | . 6 2 5 Sentry 3 | . . 1 2 Best Kill Streak 9 | 2 2 2 9 Combat Bots Only 4 | . 2 2 4 Max Kills in Single Turn 3 | 1 1 1 3 Gunslinging . | . . . . Exploded 3 | . . . 3 Melee 1 | . . 1 . Uniques/NPCs Destroyed . | . . . . Combat | -11 -10 -9 -9 -------- Run | Yrd Mat Mat Sto Hostile Shots Fired 103 | . 32 23 48 Missed 37 | . 15 6 16 Hits 66 | . 17 17 32 Projectile 66 | . 17 17 32 Critical Strikes 1 | . 1 . . Damage Taken 1588 | . 250 938 400 Core 451 | . 48 325 78 Absorbed by Shields . | . . . . Regen/Repaired (Parts) 128 | . 128 . . Core Remaining (%) 90 | 100 80 . . Volleys Fired 65 | 10 29 7 19 Largest 2 | 2 2 1 2 Hottest 120 | 40 120 100 116 Shots Fired 122 | 20 58 7 37 Gun 105 | 20 57 2 26 Cannon . | . . . . Launcher 11 | . . . 11 Special 6 | . 1 5 . Kinetic 77 | 20 57 . . Thermal 34 | . 1 7 26 Explosive 11 | . . . 11 Electromagnetic . | . . . . Robot Hit Streak 13 | 4 13 3 8 Robot Miss Streak 5 | 5 3 . 1 Penetration Max . | . . . . Secondary Targets 1 | . 1 . . Max Gunslinging Chain 1 | . 1 . . Shots Hit Robots 83 | 9 40 14 20 Core Hits 48 | 4 17 4 23 Critical Kills . | . . . . Critical Parts Destroyed . | . . . . Critical Strikes 1 | . . 1 . Sever 1 | . . 1 . Melee Attacks 38 | . . 23 15 Impact . | . . . . Slashing 37 | . . 22 15 Piercing . | . . . . Sneak Attacks 2 | . . 2 . Combat Hostiles . | . . . . Follow-up Attacks . | . . . . Damage Inflicted 2021 | 118 514 413 976 Guns 946 | 118 508 40 280 Cannons . | . . . . Explosions 694 | . . . 694 Melee 373 | . . 373 . Ramming 8 | . 6 . 2 Kinetic 626 | 118 508 . . Thermal 320 | . . 40 280 Explosive 694 | . . . 694 Electromagnetic . | . . . . Impact . | . . . . Slashing 373 | . . 373 . Piercing . | . . . . Highest Corruption 9 | . . 9 9 Average Corruption 8 | . . 8 9 Corruption Purged . | . . . . Corruption Blocked . | . . . . Effects 21 | . . 7 14 Message Errors 5 | . . . 5 Matter Fused 6 | . . 2 4 Heat Flow Errors 1 | . . 1 . Energy Discharges 2 | . . 2 . Parts Rejected 1 | . . . 1 Data Loss (minor) 3 | . . 2 1 Misfires 2 | . . . 2 Weapon Failures 1 | . . . 1 Overload Shots . | . . . . Overflow Damage . | . . . . Projectiles . | . . . . Explosions . | . . . . Melee . | . . . . Knockbacks . | . . . . Impact . | . . . . Kinetic . | . . . . Secondary . | . . . . Self-Inflicted Damage 24 | . . . 24 Shots 1 | . . . 1 Rammed . | . . . . Targets Rammed 5 | 1 3 . 1 Kicked 5 | 1 3 . 1 Crushed . | . . . . Highest Temperature 200 | . 20 197 200 Average Temperature 47 | . 8 30 62 Received Heat Transfer 420 | . 138 126 156 Siege Activations . | . . . . Martial Activations . | . . . . Shielding Activations . | . . . . Robots Disrupted . | . . . . Combat Hostiles . | . . . . Robots Corrupted . | . . . . Combat Hostiles . | . . . . Parts Fried . | . . . . Impact Corruptions . | . . . . Robots Melted . | . . . . Combat Hostiles . | . . . . Parts Melted 2 | . . . 2 Heat Transferred 666 | . . 74 592 Parts Sabotaged . | . . . . Parts Stolen . | . . . . Parts Stripped . | . . . . Power Chain Reactions . | . . . . Alert | -11 -10 -9 -9 ------- Run | Yrd Mat Mat Sto Maximum Alert Level 1 | . . . 1 Low Security (%) 98 | 100 100 100 92 Level 1 1 | . . . 7 Level 2 . | . . . . Level 3 . | . . . . Level 4 . | . . . . Level 5 . | . . . . High Security . | . . . . Max Security . | . . . . Peak Influence 228 | 5 50 40 228 Initial 1 | . . 1 . Average 18 | 1 14 5 56 Influence Increases 640 | 15 184 94 347 Destroy 0b10 Robot/C 380 | . 120 60 200 Destroy 0b10 Robot/NC 55 | 15 10 5 25 Destroy Leader 96 | . 32 22 42 Successful Hack 21 | . 21 . . Disable Machine 30 | . . . 30 Destroy Structure 58 | . 1 7 50 Influence Decreases 432 | 15 178 100 139 Entered New Map 5 | . . 5 . Time Decay 387 | 15 178 75 119 Lost Part 40 | . . 20 20 Squads Dispatched 3 | . . 1 2 Investigation 1 | . . 1 . Extermination . | . . . . Reinforcement 2 | . . . 2 Assault . | . . . . Garrison . | . . . . Intercept . | . . . . Searches Triggered . | . . . . Construction Impeded . | . . . . Haulers Reinforced . | . . . . Active Scanning Responses . | . . . . Cargo Convoy Interrupts . | . . . . Stealth | -11 -10 -9 -9 --------- Run | Yrd Mat Mat Sto Distress Signals 2 | . . . 2 Communications Jammed . | . . . . Distress Signals . | . . . . Times Spotted 27 | . 10 3 14 Peak Tracking Total 7 | . 3 2 7 Tactical Retreats . | . . . . Traps | -11 -10 -9 -9 ------- Run | Yrd Mat Mat Sto Traps Triggered 2 | . 1 1 . Indirectly . | . . . . Trap Hack Attempts . | . . . . Triggered . | . . . . Disarmed . | . . . . Reprogrammed . | . . . . Reused . | . . . . Traps Extracted . | . . . . Installed . | . . . . Triggered . | . . . . Machines | -11 -10 -9 -9 ---------- Run | Yrd Mat Mat Sto Machines Disabled 2 | . . . 2 Max in Single Turn 1 | . . . 1 Machines Repaired . | . . . . Machines Dismantled . | . . . . Machines Sabotaged . | . . . . Overloaded Fab Kills . | . . . . Hacking | -11 -10 -9 -9 --------- Run | Yrd Mat Mat Sto Machines Accessed 14 | . 9 5 . Terminals 9 | . 6 3 . Fabricators . | . . . . Repair Stations 1 | . 1 . . Recycling Units 3 | . 2 1 . Scanalyzers 1 | . . 1 . Garrison Access . | . . . . Total Hacks 31 | . 20 11 . Successful 20 | . 13 7 . Failed 11 | . 7 4 . Catastrophic . | . . . . Database Lockouts . | . . . . Manual . | . . . . Terminals 16 | . 11 5 . Fabricators . | . . . . Repair Stations 5 | . 5 . . Recycling Units 7 | . 4 3 . Scanalyzers 3 | . . 3 . Garrison Access . | . . . . Terminal Hacks 8 | . 6 2 . Prototype ID Bank 2 | . 2 . . Alert Level 2 | . 1 1 . Locate Traps 2 | . 1 1 . Dispatch Records 1 | . 1 . . Security Status 1 | . 1 . . Fabricator Hacks . | . . . . Repair Station Hacks 4 | . 4 . . Scan Component 2 | . 2 . . Repair 2 | . 2 . . Recycling Unit Hacks 5 | . 3 2 . Process 1 | . . 1 . Report Inventory 3 | . 2 1 . Retrieve Components 1 | . 1 . . Scanalyzer 3 | . . 3 . Retrieve Study 3 | . . 3 . Garrison Access Hacks . | . . . . Unauthorized Hacks . | . . . . Terminals . | . . . . Fabricators . | . . . . Repair Stations . | . . . . Recycling Units . | . . . . Scanalyzers . | . . . . Garrison Access . | . . . . Data Cores Recovered . | . . . . Used . | . . . . Hacking Detections 8 | . 4 4 . Full Trace Events 2 | . 1 1 . Feedback Events . | . . . . Feedback Blocked . | . . . . Robot Schematics Acquired . | . . . . Robots Built . | . . . . Authchips . | . . . . Time . | . . . . Total Robot Build Rating . | . . . . Part Schematics Acquired . | . . . . Parts Built . | . . . . Authchips . | . . . . Time . | . . . . Total Part Build Rating . | . . . . Part Studies Acquired 3 | . . 3 . Parts Repaired 2 | . 2 . . Time 52 | . 52 . . Parts Recycled . | . . . . Recycled Matter 95 | . . 95 . Retrieved Matter . | . . . . Retrieved Components 10 | . 10 . . Parts Scanalyzed . | . . . . Part Schematics Acquired . | . . . . Parts Damaged . | . . . . Bothacking | -11 -10 -9 -9 ------------ Run | Yrd Mat Mat Sto Used RIF Installer . | . . . . Robots Hacked . | . . . . Non-combat . | . . . . Combat . | . . . . Robot Hacks Applied . | . . . . Relay Couplers Released . | . . . . Fabnet Peak Effective % . | . . . . Robots Rewired . | . . . . Allies Hacked . | . . . . Hacks Repelled . | . . . . Allies | -11 -10 -9 -9 -------- Run | Yrd Mat Mat Sto Total Allies . | . . . . Largest Group . | . . . . Highest-Rated Group . | . . . . Highest-Rated Ally . | . . . . Total Orders . | . . . . Ally Attacks . | . . . . Total Damage . | . . . . Kills . | . . . . Allies Corrupted . | . . . . Allies Melted . | . . . . Intel | -11 -10 -9 -9 ------- Run | Yrd Mat Mat Sto Active Infowar (turns) 1577 | 47 685 514 331 Terrain 872 | 27 . 514 331 Seismic 1012 | 20 685 307 . Robot Analysis Total . | . . . . Derelict Logs Recovered . | . . . . Drone Launches . | . . . . Drone Recoveries . | . . . . Exploration | -11 -10 -9 -9 ------------- Run | Yrd Mat Mat Sto Turns Passed 1677 | 121 711 514 331 Spaces Moved 911 | 63 387 287 174 Core 12 | 12 . . . Treads . | . . . . Legs 899 | 51 387 287 174 Wheels . | . . . . Hover . | . . . . Flight . | . . . . Fastest Speed 50 | 50 120 105 117 Average Speed 119 | 116 120 119 120 Slowest Speed 150 | 150 120 130 121 Overloaded Moves . | . . . . Propulsion Burnouts . | . . . . Robots Hopped . | . . . . Potential Cave-ins 7 | . . 7 . Cave-ins Triggered 2 | . . 2 . Exploration Rate (%) 29 | 3 53 19 43 Regions Visited 3 Branch Regions 1 Pre-discovered Areas . | . . . . Known Exits Taken . | . . . . Unknown Exits Taken 3 | 1 1 1 . Scrap Searched . | . . . . Spaces Dug 29 | . 1 14 14 Terrain Destroyed 82 | . 1 14 67 Melee 23 | . . 9 14 Projectile 6 | . 1 5 . AOE 53 | . . . 53 Terrain Rammed . | . . . . Walls Destroyed . | . . . . Machines Disabled . | . . . . Actions | -11 -10 -9 -9 --------- Run | Yrd Mat Mat Sto Total 1316 | 87 575 413 241 Wait 180 | . 128 49 3 Move 907 | 62 386 285 174 Hop . | . . . . Pick Up 37 | 5 10 15 7 Fast Attach 16 | 7 2 4 3 Attach 16 | 1 1 7 7 Detach 5 | 1 1 . 3 Swap 13 | . 7 6 . Drop 33 | . 8 16 9 Fire 65 | 10 29 7 19 Melee 38 | . . 23 15 Ram . | . . . . Kick 5 | 1 3 . 1 Crush . | . . . . Escape Stasis 1 | . . 1 . Rewire . | . . . . Trap . | . . . . Miscellaneous . | . . . . Route ------- -11/Scrapyard -10/Materials (discovered 4 exits: *Mat x2 / [*Min x2]) -9/Materials (discovered 2 exits: [Mat] / *Sto) -9/Storage History --------- Turn | Location | Event 7 | -11/Scrapyard | Discovered new exit (range 15) 122 | -11/Scrapyard | Entered Materials 308 | -10/Materials | Discovered new exit (range 6) 309 | -10/Materials | Discovered new exit (range 11) 313 | -10/Materials | Build established: Mutant 567 | -10/Materials | Discovered new exit (range 8) 699 | -10/Materials | Repaired Seismic Detector 726 | -10/Materials | Repaired Med. Storage Unit 752 | -10/Materials | Discovered new exit (range 16) 822 | -10/Materials | Derelicts attacked the area 833 | -10/Materials | Entered another Materials area 833 | -9/Materials | Evolved 2 slots: Propulsion x1, Utility x1 1135 | -9/Materials | Crushed by falling debris 1140 | -9/Materials | Crushed by falling debris 1141 | -9/Materials | Core integrity fell below 50% 1171 | -9/Materials | Lost 3 parts (1p1n1u) 1182 | -9/Materials | Discovered new exit (range 5) 1252 | -9/Materials | Core integrity fell below 20% 1275 | -9/Materials | Discovered new exit (range 15) 1347 | -9/Materials | Entered Storage 1678 | -9/Storage | Destroyed by Y-45 Defender with Heavy Assault Rifle Last Messages --------------- 01654_ G-34 Mercenary destroyed. 01654_ A-02 Transporter destroyed. 01655_ 9HJM:0IQMR